Cogmind - Beta 10.2 @@@ ROGUE MODE // 2021.07.20 @ 19:40:46 Player: vera Result: Self-destructed Performance ------------- Evolutions (1) 500 Regions Visited (2) 400 Robots Destroyed (22) 110 Value Destroyed (480) 480 Prototype IDs (0) 0 Alien Tech Used (0) 0 Bonus (200) 200 TOTAL SCORE: 1690 Bonus ------- Pacifist 200 Cogmind --------- Core Integrity 170/400 Matter 281/300 Energy 125/125 System Corruption 0% Temperature Cool (0) Movement Treading (170) Location -9/Materials Parts ------- > --- POWER (1) -------- Light Ion Engine > --- PROPULSION (2) --- Armored Treads Armored Treads > --- UTILITY (3) ------ Large Storage Unit Advanced Sensor Array Advanced Targeting Computer > --- WEAPON (3) ------- High-powered Shotgun High-powered Shotgun > --- INVENTORY (10) --- Ion Engine Light Ion Engine Armored Treads Advanced Sensor Array Improved Targeting Computer High-powered Shotgun Peak State ------------ > --- POWER ------------ Light Ion Engine > --- PROPULSION ------- Armored Treads Armored Treads > --- UTILITY ---------- Small Storage Unit Advanced Sensor Array Advanced Targeting Computer > --- WEAPON ----------- High-powered Shotgun High-powered Shotgun Shock Bomb Launcher > --- INVENTORY -------- Ion Engine Armored Treads Improved Targeting Computer High-powered Shotgun Grenade Launcher [Rating: 24] Favorites ----------- Power Light Ion Engine Engine Light Ion Engine Propulsion Armored Treads Treads Armored Treads Leg Aluminum Leg Utility Advanced Sensor Array Device Advanced Sensor Array Storage Large Storage Unit Processor Advanced Targeting Computer Weapon High-powered Shotgun Energy Gun Small Laser Ballistic Gun High-powered Shotgun Launcher Shock Bomb Launcher Build | -11 -10 -9 ------- Run | Scr Mat Mat Slots Evolved 2 | . . 2 Power . | . . . Propulsion . | . . . Utility 1 | . . 1 Weapon 1 | . . 1 Parts Attached 25 | 7 1 17 Power 2 | 1 . 1 Engine 2 | 1 . 1 Core . | . . . Reactor . | . . . Propulsion 6 | 2 . 4 Treads 4 | . . 4 Leg 2 | 2 . . Wheel . | . . . Hover . | . . . Flight . | . . . Utility 6 | 1 1 4 Device 2 | . . 2 Storage 2 | 1 . 1 Processor 2 | . 1 1 Hackware . | . . . Protection . | . . . Artifact . | . . . Weapon 11 | 3 . 8 Energy Gun 1 | 1 . . Energy Cannon . | . . . Ballistic Gun 7 | 2 . 5 Ballistic Cannon . | . . . Launcher 3 | . . 3 Special Weapon . | . . . Impact Weapon . | . . . Slashing Weapon . | . . . Piercing Weapon . | . . . Special Melee Weapon . | . . . Unidentified Prototypes . | . . . Parts Lost 3 | . . 3 Power 1 | . . 1 Propulsion . | . . . Utility . | . . . Weapon 2 | . . 2 Highest Loss Streak 1 | . . 1 Average Slot Usage (%) 93 | . 86 94 Engine 9 | . 14 8 Treads 16 | . . 19 Leg 6 | . 28 2 Device 9 | . . 10 Storage 11 | . 14 11 Processor 9 | . 1 10 Ballistic Gun 22 | . 28 21 Launcher 7 | . . 9 Naked Turns . | . . . Heaviest Build 32 | 10 10 32 Greatest Support 40 | 20 20 40 Greatest Overweight (x) 6 | . . 6 Average Overweight (x) . | . . . Largest Inventory Capacity 10 | 6 6 10 Average Capacity 8 | 5 6 9 Most Carried 6 | 1 3 6 Average Carried 4 | . 1 5 Final Capacity 10 | 6 6 10 Final Carried 6 | 1 3 6 Class Distribution -------------------- 100% | Mutant Dominant Class ---------------- Mutant | -10/Materials Mutant | -9/Materials Resources | -11 -10 -9 ----------- Run | Scr Mat Mat Matter Collected 758 | 191 . 567 Remotely . | . . . Salvage Created 634 | . . 634 Parts 36 | . . 36 Haulers Intercepted . | . . . Recyclers Shooed . | . . . Parts Field Recycled . | . . . Retrieved Matter . | . . . Parts Self-Destructed . | . . . Prevented . | . . . Kills | -11 -10 -9 ------- Run | Scr Mat Mat Combat Hostiles Destroyed 17 | . . 17 Guns 16 | . . 16 AOE 1 | . . 1 Classes Destroyed 7 | . . 7 Worker 1 | . . 1 Recycler 3 | . . 3 Watcher 1 | . . 1 Swarmer 7 | . . 7 Grunt 7 | . . 7 Duelist 1 | . . 1 Sentry 2 | . . 2 Best Kill Streak 6 | . . 6 Combat Bots Only 5 | . . 5 Max Kills in Single Turn 2 | . . 2 Gunslinging . | . . . Exploded 1 | . . 1 Melee . | . . . Uniques/NPCs Destroyed . | . . . Combat | -11 -10 -9 -------- Run | Scr Mat Mat Damage Taken 1261 | . . 1261 Core 230 | . . 230 Absorbed by Shields . | . . . Core Remaining (%) 100 | 100 100 . Volleys Fired 49 | . . 49 Largest 2 | . . 2 Hottest 50 | . . 50 Shots Fired 86 | . . 86 Gun 84 | . . 84 Cannon . | . . . Launcher 2 | . . 2 Special . | . . . Kinetic 84 | . . 84 Thermal . | . . . Explosive . | . . . Electromagnetic 2 | . . 2 Robot Hit Streak 21 | . . 21 Robot Miss Streak 3 | . . 3 Penetration Max . | . . . Secondary Targets 1 | . . 1 Max Gunslinging Chain 1 | . . 1 Shots Hit Robots 73 | . . 73 Core Hits 29 | . . 29 Critical Hits . | . . . Critical Kills . | . . . Critical Parts Destroyed . | . . . Melee Attacks . | . . . Impact . | . . . Slashing . | . . . Piercing . | . . . Sneak Attacks . | . . . Combat Hostiles . | . . . Follow-up Attacks . | . . . Damage Inflicted 1182 | . . 1182 Guns 1128 | . . 1128 Cannons . | . . . Explosions 46 | . . 46 Melee . | . . . Ramming 8 | . . 8 Kinetic 1128 | . . 1128 Thermal . | . . . Explosive . | . . . Electromagnetic 46 | . . 46 Impact . | . . . Slashing . | . . . Piercing . | . . . Highest Corruption . | . . . Average Corruption . | . . . Corruption Purged . | . . . Overload Shots . | . . . Overflow Damage . | . . . Projectiles . | . . . Explosions . | . . . Melee . | . . . Knockbacks . | . . . Impact . | . . . Kinetic . | . . . Secondary . | . . . Self-Inflicted Damage . | . . . Shots . | . . . Rammed 1 | . . 1 Targets Rammed 2 | . . 2 Kicked . | . . . Crushed 1 | . . 1 Highest Temperature 5 | . . 5 Average Temperature 3 | . . 3 Received Heat Transfer 291 | . . 291 Siege Activations . | . . . Robots Corrupted . | . . . Combat Hostiles . | . . . Parts Fried . | . . . Impact Corruptions . | . . . Robots Melted . | . . . Combat Hostiles . | . . . Parts Melted . | . . . Heat Transferred . | . . . Parts Sabotaged . | . . . Parts Stolen . | . . . Parts Stripped . | . . . Power Chain Reactions . | . . . Missiles Intercepted . | . . . Alert | -11 -10 -9 ------- Run | Scr Mat Mat Peak Influence 302 | . 30 302 Initial 12 | . . 12 Average 121 | . 17 150 Maximum Alert Level 1 | . . 1 Low Security (%) 71 | 100 100 63 Level 1 28 | . . 36 Level 2 . | . . . Level 3 . | . . . Level 4 . | . . . Level 5 . | . . . High Security . | . . . Max Security . | . . . Squads Dispatched 1 | . . 1 Investigation 1 | . . 1 Extermination . | . . . Reinforcement . | . . . Assault . | . . . Garrison . | . . . Intercept . | . . . Construction Impeded . | . . . Haulers Reinforced . | . . . Stealth | -11 -10 -9 --------- Run | Scr Mat Mat Distress Signals 3 | . 1 2 Communications Jammed . | . . . Distress Signals . | . . . Times Spotted 25 | . 1 24 Peak Tracking Total 6 | . 3 6 Tactical Retreats 2 | . 1 1 Traps | -11 -10 -9 ------- Run | Scr Mat Mat Traps Triggered . | . . . Indirectly . | . . . Trap Hack Attempts . | . . . Triggered . | . . . Disarmed . | . . . Reprogrammed . | . . . Reused . | . . . Traps Extracted . | . . . Installed . | . . . Triggered . | . . . Machines | -11 -10 -9 ---------- Run | Scr Mat Mat Machines Disabled . | . . . Max in Single Turn . | . . . Machines Sabotaged . | . . . Garrisons Compromised . | . . . Overloaded Fab Kills . | . . . Fab Network Shutdowns . | . . . Hacking | -11 -10 -9 --------- Run | Scr Mat Mat Machines Accessed 2 | . . 2 Terminals 1 | . . 1 Fabricators . | . . . Repair Stations . | . . . Recycling Units 1 | . . 1 Scanalyzers . | . . . Garrison Access . | . . . Total Hacks 5 | . . 5 Successful 1 | . . 1 Failed 4 | . . 4 Catastrophic . | . . . Database Lockouts . | . . . Manual . | . . . Terminals 4 | . . 4 Fabricators . | . . . Repair Stations . | . . . Recycling Units 1 | . . 1 Scanalyzers . | . . . Garrison Access . | . . . Terminal Hacks . | . . . Fabricator Hacks . | . . . Repair Station Hacks . | . . . Recycling Unit Hacks 1 | . . 1 Report Inventory 1 | . . 1 Scanalyzer . | . . . Garrison Access Hacks . | . . . Unauthorized Hacks . | . . . Terminals . | . . . Fabricators . | . . . Repair Stations . | . . . Recycling Units . | . . . Scanalyzers . | . . . Garrison Access . | . . . Data Cores Recovered . | . . . Used . | . . . Hacking Detections 2 | . . 2 Full Trace Events 1 | . . 1 Feedback Events . | . . . Feedback Blocked . | . . . Robot Schematics Acquired . | . . . Robots Built . | . . . Matter . | . . . Time . | . . . Total Robot Build Rating . | . . . Part Schematics Acquired . | . . . Parts Built . | . . . Matter . | . . . Time . | . . . Total Part Build Rating . | . . . Parts Repaired . | . . . Time . | . . . Parts Recycled . | . . . Recycled Matter . | . . . Retrieved Matter . | . . . Retrieved Components . | . . . Parts Scanalyzed . | . . . Part Schematics Acquired . | . . . Parts Damaged . | . . . Bothacking | -11 -10 -9 ------------ Run | Scr Mat Mat Used RIF Installer . | . . . Robots Hacked . | . . . Non-combat . | . . . Combat . | . . . Robot Hacks Applied . | . . . Relay Couplers Released . | . . . Robots Rewired . | . . . Allies Hacked . | . . . Hacks Repelled . | . . . Allies | -11 -10 -9 -------- Run | Scr Mat Mat Total Allies . | . . . Largest Group . | . . . Highest-Rated Group . | . . . Highest-Rated Ally . | . . . Total Orders . | . . . Ally Attacks . | . . . Total Damage . | . . . Kills . | . . . Allies Corrupted . | . . . Allies Melted . | . . . Intel | -11 -10 -9 ------- Run | Scr Mat Mat Robot Analysis Total . | . . . Derelict Logs Recovered . | . . . Drone Launches . | . . . Drone Recoveries . | . . . Exploration | -11 -10 -9 ------------- Run | Scr Mat Mat Turns Passed 922 | 63 132 727 Spaces Moved 478 | 46 108 324 Core 7 | 5 . 2 Treads 282 | . . 282 Legs 189 | 41 108 40 Wheels . | . . . Hover . | . . . Flight . | . . . Fastest Speed 50 | 50 120 120 Average Speed 149 | 112 120 164 Slowest Speed 350 | 120 120 350 Overloaded Moves . | . . . Propulsion Burnouts . | . . . Robots Hopped . | . . . Cave-ins Triggered . | . . . Exploration Rate (%) 15 | 3 24 20 Regions Visited 2 Branch Regions . Pre-discovered Areas . | . . . Known Exits Taken . | . . . Unknown Exits Taken 2 | 1 1 . Scrap Searched . | . . . Spaces Dug . | . . . Terrain Destroyed . | . . . Melee . | . . . Projectile . | . . . AOE . | . . . Terrain Rammed . | . . . Walls Destroyed . | . . . Machines Disabled . | . . . Actions | -11 -10 -9 --------- Run | Scr Mat Mat Total 591 | 54 110 427 Wait 23 | . . 23 Move 476 | 45 107 324 Hop . | . . . Pick Up 6 | 1 2 3 Fast Attach 16 | 7 1 8 Attach 4 | . . 4 Detach 3 | . . 3 Swap 5 | . . 5 Drop 7 | 1 . 6 Fire 49 | . . 49 Melee . | . . . Ram . | . . . Kick . | . . . Crush 2 | . . 2 Escape Stasis . | . . . Rewire . | . . . Trap . | . . . Miscellaneous . | . . . Route ------- -11/Scrapyard -10/Materials -9/Materials History --------- Turn | Location | Event 12 | -11/Scrapyard | Discovered new exit (range 15) 64 | -11/Scrapyard | Entered Materials 172 | -10/Materials | Discovered new exit (range 15) 196 | -10/Materials | Entered another Materials area 196 | -9/Materials | Evolved 2 slots: Utility x1, Weapon x1 310 | -9/Materials | Build established: Mutant 903 | -9/Materials | Core integrity fell below 50% 923 | -9/Materials | Self-destructed Last Messages --------------- 00747_ Acquired 9 matter. 00748_ K-01 Serf collects debris. 00754_ Acquired Lgt. Ion Engine. 00755_ K-01 Serf collects debris. 00792_ R-06 Scavenger collects Flight Unit. 00829_ Acquired 49 matter. 00836_ K-01 Serf collects debris. 00847_ K-01 Serf cleans the Terminal. 00848_ Connecting with Terminal... 00848_ ALERT: Suspicious activity at Terminal M012. Dispatching Investigation squad. 00852_ K-01 Serf cleans the Terminal. 00861_ K-01 Serf cleans the Matter Pump. 00902_ Grenade Launcher destroyed. 00906_ Y-45 Defender destroyed. 00909_ Acquired 42 matter. 00914_ K-01 Serf collects debris. 00915_ R-06 Scavenger collects Imp. Ion Engine. 00918_ W-16 Scout sends out distress signal. 00918_ K-01 Serf collects debris. Map ----- +----------------------------------------------------+ | ???????????????????????????????????????## """ | | ???????????????????????????????????????#" %""" | | ???????????????????????????????????????#T | | ???????????????????????????????????????#" | | ???????????????????????????????????????## ^ """ | | ???????????????????????????????????????# """ | | ?????????????????????????????????##+#### """ | | ?????????????????????????????????# | | ?????????????????????????????????# | | ?????????????????????????????????# ###+# | | ?????????????????????????????????# #########???? | | ?????????????????????????????????# #???????????? | | ?????????????????????????????????# #???????????? | | ????????????????????????????????## ##??????????? | | ??????????????????????########### #??????????? | | ??????????????????????# # ????? | | ??????????????????????# + ""??????? | | ??????????????????????# [ ? #??????????? | | ??????????????????????# ####### #??????????? | | ??????????????????????# #?????#######??????????? | | ??????????????????????# k#??????????????????????? | | ?????????????????????## ##?????????????????????? | | ?????????????????????# #############?????????? | | ?????????????????????# w????????? | | ?????????????????????+ r ????????? | | ?????????????????????# @ sss s ????????? | | ?????????????????????# ####### """?????????? | | ?????????????????????###a###???????? ""??????????? | | ??????????????????????? ????????????????????????? | | ?????????????????????? ????????????????????????? | | ?????????????????????# ????????????????????????? | | ?????????????????????+ * ????????????????????????? | | ?????????????????????# ????????????????????????? | | ?????????????????????# ????????????????????????? | | ?????????????????????####????????????????????????? | | ?????????????????????????????????????????????????? | | ?????????????????????????????????????????????????? | | ?????????????????????????????????????????????????? | | ?????????????????????????????????????????????????? | | ?????????????????????????????????????????????????? | | ?????????????????????????????????????????????????? | | ?????????????????????????????????????????????????? | | ?????????????????????????????????????????????????? | | ?????????????????????????????????????????????????? | | ?????????????????????????????????????????????????? | | ?????????????????????????????????????????????????? | | ?????????????????????????????????????????????????? | | ?????????????????????????????????????????????????? | | ?????????????????????????????????????????????????? | | ?????????????????????????????????????????????????? | +----------------------------------------------------+ Best States ------------- Heat Dissipation 28 Energy Generation 10 Energy Capacity 125 Matter Stores 281 Matter Capacity 300 Sight Range 16 Robot Scan Range 16 Terrain Scan Density 10 Evasion (%) 40 Targeting Accuracy 8 Recoil Reduction 2 Item Schematics ----------------- None Robot Schematics ------------------ None Fabricated ------------ Nothing Alien Tech Used ----------------- None Achievements -------------- None Challenges ------------ None Game ------ Seed GammaOpticalBoregun Manual? 0 Play Time 00:16:06 Cumulative 6.7 hours Start 2021.07.20 @ 19:14:59 End 2021.07.20 @ 19:40:46 Sessions 1 Manual Loads 0 Difficulty Rogue Special Mode None Game No. 17 Rogue 17 Adventurer 0 Explorer 0 Win Type - Total 0 Types 0/0/0/0/0/0/0/0/0 Lore% 5 Gallery% 12 Achievement% 5 Wizard Run 0 Options --------- ASCII 0 Keyboard 0 Movement Numpad Keybinds 0 Fullscreen 1 Font 18/SmallcapsGlow Map View 76x50 Tactical HUD 1 Map Filters NONE Filters NONE Steam 1 RUN: 35394779-2a5e-4b06-8d2b-bbf2d398d5a7